bitfinex/quotes_BTCUSD_20220731
["timestamp","ask_amount","ask_price","bid_price","bid_amount"]
[1659229151416,0.40725733,23763.0,23755.0,0.01233479]
[1659229151642,0.40103733,23763.0,23756.0,0.71068333]
[1659229151864,0.40103733,23763.0,23758.0,6.06e-05]
[1659229152112,0.8,23759.0,23758.0,6.06e-05]
[1659229152331,1.66788233,23759.0,23758.0,6.06e-05]
[1659229153007,1.66788233,23759.0,23749.0,0.5638]
[1659229153008,1.26788233,23759.0,23749.0,0.59541]
[1659229153226,0.40725733,23758.0,23750.0,0.92109933]
[1659229153468,0.40725733,23758.0,23757.0,6.021e-05]
[1659229153921,0.40725733,23760.0,23757.0,0.09755021]
[1659229154184,6.02e-05,23761.0,23757.0,0.09755021]
[1659229154412,6.02e-05,23761.0,23757.0,0.307843]
[1659229154632,0.40725733,23762.0,23758.0,0.603426]
[1659229154859,0.40725733,23762.0,23758.0,0.405182]
[1659229155077,0.40725733,23762.0,23759.0,0.08467316]
[1659229155295,0.0500602,23761.0,23759.0,0.08467316]
[1659229155528,6.02e-05,23761.0,23759.0,0.08467316]
[1659229155750,6.02e-05,23761.0,23759.0,0.38809916]
[1659229155973,6.02e-05,23761.0,23759.0,0.03467316]
[1659229156197,0.40725733,23762.0,23759.0,0.03467316]
[1659229156692,0.05,23761.0,23759.0,0.03473337]
[1659229156918,6.02e-05,23761.0,23760.0,0.55]
[1659229157151,6.02e-05,23761.0,23759.0,6.021e-05]
[1659229157597,0.00088507,23764.0,23760.0,0.05]
[1659229157827,0.40725733,23763.0,23760.0,0.105184]
[1659229158291,0.05,23762.0,23760.0,0.105184]
[1659229158511,0.40725733,23763.0,23760.0,0.105184]
[1659229158738,0.40725733,23763.0,23760.0,0.210368]
[1659229159186,0.060625,23762.0,23760.0,0.210368]
[1659229159413,0.40725733,23763.0,23760.0,0.210368]
[1659229160579,0.410625,23762.0,23760.0,0.105184]
[1659229160800,0.40725733,23761.0,23760.0,0.105184]
[1659229161020,0.56788233,23761.0,23760.0,0.105184]
[1659229161684,0.56288233,23761.0,23760.0,0.105184]
[1659229162137,0.50225733,23761.0,23760.0,0.105184]
[1659229162353,0.56288233,23761.0,23760.0,0.105184]
[1659229162562,0.56288233,23761.0,23758.0,0.105208]
[1659229162790,0.40725733,23760.0,23759.0,0.29008545]
[1659229163023,0.1,23759.0,23758.0,0.105208]
[1659229163251,0.40725733,23760.0,23758.0,0.105208]
[1659229163701,0.160625,23759.0,23755.0,0.10521]
[1659229163918,0.610435,23761.0,23756.0,0.105218]
[1659229163919,0.1,23757.0,23756.0,0.105218]
[1659229164187,0.1,23757.0,23755.0,0.10521]
[1659229164868,0.1,23756.0,23755.0,0.10521]
[1659229165074,0.40725733,23757.0,23755.0,0.10521]
[1659229165540,0.160625,23756.0,23755.0,0.10521]
[1659229165786,0.40725733,23756.0,23755.0,0.10521]
[1659229166891,0.30725733,23756.0,23755.0,0.13988316]
[1659229167121,0.30725733,23756.0,23755.0,0.10521]
[1659229168116,0.30725733,23756.0,23755.0,0.13988316]
[1659229168524,0.30725733,23756.0,23755.0,0.10521]
[1659229170097,0.40725733,23759.0,23755.0,0.10521]
[1659229170296,0.40725733,23759.0,23755.0,0.210421]
[1659229170297,0.060625,23758.0,23755.0,0.210421]
[1659229170511,0.40725733,23757.0,23755.0,0.210421]
[1659229170714,0.05,23756.0,23755.0,0.210421]
[1659229170926,0.40725733,23757.0,23755.0,0.210421]
[1659229171348,0.060625,23756.0,23755.0,0.210421]
[1659229171564,0.40725733,23757.0,23755.0,0.210421]
[1659229171989,0.40725733,23757.0,23756.0,0.303426]
[1659229172642,0.40725733,23757.0,23756.0,0.33467316]
[1659229172844,0.40725733,23757.0,23755.0,0.210421]
[1659229173283,0.5707,23760.0,23755.0,0.210421]
[1659229173284,0.40725733,23759.0,23755.0,0.210421]
[1659229173739,0.05,23758.0,23755.0,0.210421]
[1659229173940,0.40725733,23759.0,23755.0,0.210421]
[1659229174569,0.40725733,23759.0,23756.0,6.853e-05]
[1659229174991,0.060625,23758.0,23756.0,6.853e-05]
[1659229175202,0.35,23757.0,23756.0,6.853e-05]
[1659229175827,0.40725733,23759.0,23755.0,0.210421]
[1659229176062,0.40725733,23758.0,23755.0,0.210421]
[1659229176502,0.1,23756.0,23755.0,0.210421]
[1659229176723,0.40725733,23756.0,23755.0,0.210421]
[1659229177426,0.40725733,23756.0,23755.0,0.205421]
[1659229177881,0.40725733,23756.0,23755.0,0.24009416]
[1659229178097,0.40725733,23756.0,23755.0,0.205421]
[1659229179519,0.46788233,23756.0,23755.0,0.205421]
[1659229179699,0.40725733,23756.0,23755.0,0.205421]
[1659229179915,0.40725733,23756.0,23755.0,0.24009416]
[1659229181973,0.40725733,23756.0,23755.0,0.54352016]
[1659229182192,0.40725733,23756.0,23755.0,0.54009416]
[1659229183091,0.40725733,23756.0,23755.0,0.505421]
[1659229183396,0.40725733,23756.0,23755.0,0.23999482]
[1659229183607,0.40725733,23756.0,23755.0,0.54342082]
[1659229183824,0.40725733,23756.0,23755.0,0.53999482]
[1659229184693,0.40725733,23756.0,23755.0,0.84342082]
[1659229184903,0.40725733,23756.0,23755.0,0.23999482]
[1659229185155,0.40725733,23756.0,23755.0,0.20532166]
[1659229186038,0.40725733,23756.0,23755.0,0.50874766]
[1659229186500,0.40725733,23759.0,23755.0,0.53999482]
[1659229186718,0.05,23758.0,23756.0,0.3]
[1659229186931,0.40725733,23759.0,23756.0,0.3]
[1659229187413,0.40725733,23759.0,23755.0,0.23999482]
[1659229187634,0.40725733,23759.0,23755.0,0.20532166]
[1659229187635,0.060625,23758.0,23755.0,0.20532166]
[1659229187867,0.40725733,23757.0,23755.0,0.20532166]
[1659229188096,0.060625,23756.0,23755.0,0.20532166]
[1659229188322,0.40725733,23757.0,23755.0,0.20532166]
[1659229188584,0.05,23756.0,23755.0,0.23999482]
[1659229188824,0.40725733,23757.0,23755.0,0.23999482]
[1659229189289,0.05,23756.0,23755.0,0.23999482]
[1659229189502,0.40725733,23757.0,23755.0,0.23999482]
[1659229190402,0.060625,23756.0,23755.0,0.20532166]
[1659229190646,0.46788233,23756.0,23755.0,0.20532166]
[1659229190879,0.40725733,23756.0,23755.0,0.20532166]
[1659229191637,0.46788233,23756.0,23755.0,0.20532166]
[1659229191839,0.40725733,23756.0,23755.0,0.20532166]
[1659229192053,0.46788233,23756.0,23755.0,0.20532166]
[1659229192279,0.40725733,23756.0,23755.0,0.20532166]
[1659229194297,1.50725733,23756.0,23755.0,0.10011066]
[1659229194527,1.26788233,23756.0,23754.0,6.854e-05]
[1659229194752,2.28880233,23755.0,23743.0,0.97602]
[1659229195030,0.4,23753.0,23743.0,0.97602]
[1659229195261,0.4,23753.0,23742.0,0.749252]
[1659229195262,0.210531,23750.0,23742.0,0.644]
[1659229195491,0.210531,23750.0,23740.0,0.0021]
[1659229195492,0.76788233,23749.0,23740.0,0.0021]
[1659229195722,0.61780033,23748.0,23740.0,0.0021]
[1659229195943,0.5802,23750.0,23745.0,0.105253]
[1659229195944,0.40725733,23747.0,23745.0,0.105253]
[1659229196180,0.40725733,23747.0,23746.0,0.03467316]
[1659229196393,0.40725733,23747.0,23745.0,0.105253]
[1659229196608,0.40725733,23747.0,23746.0,0.303426]
[1659229196870,0.40725733,23747.0,23745.0,0.105253]
[1659229197312,0.40725733,23747.0,23745.0,0.13992616]
[1659229197541,0.40725733,23747.0,23745.0,0.105253]
[1659229197762,0.40725733,23747.0,23745.0,0.210506]
[1659229198422,0.40725733,23747.0,23746.0,0.03467316]
[1659229198953,0.40725733,23747.0,23745.0,0.210506]
[1659229199192,0.40725733,23747.0,23746.0,0.03467316]
[1659229199415,0.40725733,23747.0,23745.0,0.210506]
[1659229200277,0.40725733,23747.0,23746.0,0.019976]
[1659229200753,0.38611533,23747.0,23746.0,0.323402]
[1659229200989,0.5802,23750.0,23746.0,0.323402]
[1659229200990,0.98089633,23750.0,23746.0,0.428645]
[1659229201220,0.98089633,23750.0,23747.0,0.03467316]
[1659229201464,0.40725733,23750.0,23747.0,0.13991516]
[1659229201688,0.40725733,23750.0,23748.0,0.210449]
[1659229201916,0.40725733,23750.0,23748.0,0.615672]
[1659229202114,0.40725733,23750.0,23749.0,0.05]
[1659229202332,0.40725733,23753.0,23749.0,0.05]
[1659229202552,0.40725733,23753.0,23750.0,0.03467316]
[1659229202792,0.40725733,23753.0,23750.0,0.01467316]
[1659229203240,0.40725733,23753.0,23749.0,0.560446]
[1659229203690,0.05,23752.0,23749.0,0.560446]
[1659229203922,0.40725733,23752.0,23749.0,0.876101]
[1659229204166,0.5621,23757.0,23749.0,0.876101]
[1659229204167,0.40725733,23756.0,23751.0,0.31563]
[1659229204381,0.40725733,23756.0,23751.0,0.21042]
[1659229204613,0.060625,23755.0,23751.0,0.21042]
[1659229204849,0.40725733,23755.0,23751.0,0.21042]
[1659229205056,0.40725733,23755.0,23751.0,0.51042]
[1659229205293,0.060625,23754.0,23751.0,0.51042]
[1659229205520,0.40725733,23755.0,23751.0,0.21042]
[1659229205969,0.62538805,23752.0,23751.0,0.21042]
[1659229207121,0.62538805,23752.0,23751.0,0.22523499]
[1659229207781,1.05264537,23752.0,23751.0,0.21042]
[1659229208048,1.05264537,23752.0,23751.0,0.21034608]
[1659229208744,0.85264537,23752.0,23751.0,0.21034608]
[1659229209447,0.92546067,23752.0,23749.0,0.105244]
[1659229209666,0.1,23750.0,23747.0,0.105264]
[1659229209892,0.1,23748.0,23747.0,0.105264]
[1659229210115,0.50725733,23748.0,23747.0,0.105264]
[1659229210326,1.76788233,23748.0,23746.0,0.019976]
[1659229210606,2.58896833,23747.0,23746.0,0.019976]
[1659229210836,0.1,23743.0,23740.0,0.0021]
[1659229211059,0.1,23741.0,23740.0,0.0021]
[1659229211278,0.56788233,23741.0,23740.0,0.0021]
[1659229211500,0.1,23734.0,23733.0,0.001]
[1659229211718,0.90725733,23734.0,23733.0,0.001]
[1659229211933,0.56788233,23734.0,23733.0,0.001]
[1659229212191,0.50725733,23734.0,23733.0,0.001]
[1659229212383,0.56788233,23734.0,23733.0,0.001]
[1659229212816,0.50725733,23734.0,23733.0,0.001]
[1659229213045,0.56788233,23734.0,23733.0,0.09849]
[1659229213285,0.50725733,23734.0,23733.0,0.09849]
[1659229213504,0.40725733,23734.0,23733.0,0.09849]
[1659229213962,0.40725733,23739.0,23733.0,0.001]
[1659229214190,0.060625,23738.0,23734.0,0.105296]
[1659229214403,0.70725733,23738.0,23734.0,0.105296]
[1659229214700,0.46788233,23737.0,23734.0,0.105296]
[1659229214920,1.10725733,23736.0,23735.0,6.119e-05]
[1659229215161,1.16788233,23736.0,23735.0,6.119e-05]
[1659229215392,1.18788232,23736.0,23735.0,6.119e-05]
[1659229215851,1.18788232,23736.0,23733.0,0.001]
[1659229216111,0.40725733,23735.0,23733.0,0.001]
[1659229216534,0.55,23734.0,23733.0,0.001]
[1659229216995,0.55,23734.0,23733.0,0.00106119]
[1659229217662,0.1,23734.0,23733.0,0.14300119]
[1659229217891,0.40725733,23735.0,23733.0,0.09849]
[1659229218114,0.05,23734.0,23733.0,0.09849]
[1659229218374,0.40725733,23735.0,23733.0,0.701916]
[1659229218568,0.40725733,23735.0,23733.0,0.39849]
[1659229218778,0.40725733,23735.0,23734.0,0.00074895]
[1659229218996,0.40725733,23735.0,23734.0,0.09823895]
[1659229219212,0.40725733,23735.0,23734.0,0.09749]
[1659229219948,0.40725733,23735.0,23733.0,0.001]
[1659229220187,0.0121903,23736.0,23733.0,0.00106016]
[1659229220419,0.0121903,23736.0,23734.0,0.05]
[1659229220662,0.0121903,23736.0,23735.0,0.15661317]
[1659229220895,0.0121903,23736.0,23735.0,0.76003917]
[1659229221347,0.0121903,23736.0,23734.0,0.239522]
[1659229221579,0.0121903,23736.0,23735.0,0.05]
[1659229221795,0.0121903,23736.0,23735.0,0.36809917]
[1659229222036,0.0121903,23736.0,23735.0,0.06467317]
[1659229222740,0.46389763,23736.0,23735.0,0.06467317]
[1659229222985,0.46389763,23736.0,23734.0,0.189522]
[1659229222986,0.41944763,23736.0,23734.0,0.189522]
[1659229223196,0.40725733,23735.0,23734.0,0.189522]
[1659229223649,0.40725733,23735.0,23734.0,0.184522]
[1659229224584,0.40725733,23735.0,23734.0,0.089764]
[1659229229655,0.40725733,23735.0,23734.0,0.289764]
[1659229230358,0.41944763,23735.0,23734.0,0.289764]
[1659229231582,0.0121903,23735.0,23734.0,0.59319]
[1659229231807,0.0121903,23735.0,23734.0,1.13539]
[1659229232029,0.0121903,23735.0,23734.0,1.11843317]
[1659229232255,0.0121903,23735.0,23734.0,0.90786317]
[1659229234816,0.0121903,23735.0,23734.0,1.5573245]
[1659229235464,0.0121903,23735.0,23734.0,1.6573245]
[1659229235729,0.0071903,23735.0,23734.0,1.5573245]
[1659229235952,0.0071903,23735.0,23734.0,1.6073245]
[1659229236433,0.0071903,23735.0,23734.0,1.7073245]
[1659229236897,0.0071903,23735.0,23734.0,1.6573245]
[1659229237128,0.0071903,23735.0,23734.0,1.7073245]
[1659229237341,0.0071903,23735.0,23734.0,1.3073245]
[1659229237576,0.0071903,23735.0,23734.0,1.2756945]
[1659229238265,0.0071903,23735.0,23734.0,1.3073245]
[1659229238484,0.0071903,23735.0,23734.0,1.31993627]
[1659229238708,0.0071903,23735.0,23734.0,1.71993627]
[1659229241435,0.0071903,23735.0,23734.0,1.68830627]
[1659229241649,0.0071903,23735.0,23734.0,1.71993627]
[1659229244606,0.0071903,23735.0,23734.0,1.7073245]
[1659229246409,0.0071903,23735.0,23734.0,1.68830627]
[1659229246644,0.0071903,23735.0,23734.0,1.71993627]
[1659229246877,0.0071903,23735.0,23734.0,1.68830627]
[1659229247337,0.00718995,23735.0,23734.0,1.71993627]
[1659229247784,0.00718995,23735.0,23734.0,1.7073245]
[1659229248014,0.00718995,23735.0,23734.0,1.71993627]
[1659229248733,0.00718995,23735.0,23734.0,1.68830627]
[1659229249431,0.00718995,23735.0,23734.0,1.71993627]
[1659229250121,0.00718995,23735.0,23734.0,1.68830627]
[1659229250815,0.00718995,23735.0,23734.0,1.6756945]
[1659229251728,0.00718995,23735.0,23734.0,1.66516154]
[1659229252729,0.00718995,23735.0,23734.0,1.67777331]
[1659229253017,0.00718995,23735.0,23734.0,1.70940331]
[1659229253186,0.554,23748.0,23735.0,0.05]
[1659229253396,0.40725733,23747.0,23738.0,0.936649]
[1659229253606,0.554,23748.0,23741.0,0.631456]
[1659229253607,0.96125733,23748.0,23741.0,0.631456]
[1659229253809,0.96125733,23748.0,23742.0,0.394722]
[1659229254037,0.96125733,23748.0,23742.0,0.699942]
[1659229254235,0.96125733,23748.0,23742.0,0.71255377]
[1659229254502,0.96125733,23748.0,23742.0,0.794664]
[1659229254730,0.96125733,23748.0,23742.0,0.50727577]
[1659229254936,0.060625,23747.0,23742.0,0.494664]
[1659229255144,0.060625,23747.0,23742.0,0.189444]
[1659229255145,0.40725733,23746.0,23742.0,0.189444]
[1659229255380,0.08062499,23745.0,23742.0,0.189444]
[1659229255625,0.08062499,23745.0,23742.0,0.094722]
[1659229255626,0.1,23743.0,23742.0,0.094722]
[1659229255854,0.50725733,23743.0,23742.0,0.094722]
[1659229256052,0.56788233,23743.0,23742.0,0.094722]
[1659229261710,0.631684,23747.0,23742.0,0.094722]
[1659229261912,0.954,23748.0,23742.0,0.189457]
[1659229261913,0.40725733,23746.0,23742.0,0.189457]
[1659229262139,0.40725733,23746.0,23743.0,0.01467317]
[1659229262341,0.40725733,23746.0,23743.0,0.22516817]
[1659229262544,0.40725733,23746.0,23743.0,0.01467317]
[1659229262949,0.40725733,23746.0,23743.0,0.01474174]
[1659229263153,0.40725733,23746.0,23743.0,6.857e-05]
[1659229263354,0.40725733,23746.0,23743.0,0.01474174]
[1659229263978,0.40725733,23746.0,23743.0,0.01467317]
[1659229264456,0.40725733,23746.0,23742.0,0.294704]
[1659229264609,0.40725733,23746.0,23743.0,0.01467317]
[1659229264771,0.40725733,23746.0,23742.0,0.189457]
[1659229264977,0.40725733,23746.0,23742.0,0.489457]
[1659229265410,0.40725733,23746.0,23742.0,0.189457]
[1659229265411,0.01999999,23745.0,23742.0,0.189457]
[1659229265679,0.48788232,23745.0,23742.0,0.094722]
[1659229265932,0.40725733,23744.0,23742.0,0.094722]
[1659229266145,0.1,23743.0,23742.0,0.094722]
[1659229266357,0.50725733,23743.0,23742.0,0.094722]
[1659229266587,0.56788233,23743.0,23742.0,0.094722]
[1659229266825,0.50725733,23743.0,23742.0,0.094722]
[1659229267049,0.56788233,23743.0,23742.0,0.094722]
[1659229267945,0.954,23748.0,23742.0,0.094722]
[1659229267946,0.6055,23751.0,23742.0,0.10939517]
[1659229268199,0.40725733,23750.0,23744.0,0.210481]
[1659229268441,0.060625,23749.0,23745.0,0.094716]
[1659229268656,0.40725733,23748.0,23745.0,0.189432]
[1659229268873,0.40725733,23748.0,23746.0,0.01467317]
[1659229269987,0.01999999,23747.0,23745.0,0.189432]
[1659229270204,0.01999999,23747.0,23745.0,0.094716]
[1659229270205,0.85725733,23746.0,23745.0,0.094716]
[1659229270434,0.91788233,23746.0,23745.0,0.094716]
[1659229273110,0.96788233,23746.0,23745.0,0.094716]
[1659229273578,0.91788233,23746.0,23745.0,0.0946389]
[1659229276595,0.96788233,23746.0,23745.0,0.0946389]
[1659229277489,0.91788233,23746.0,23745.0,0.0946389]
[1659229277694,0.51788233,23746.0,23745.0,0.0946389]
[1659229279041,0.46788233,23746.0,23745.0,0.0946389]
[1659229279264,0.40725733,23746.0,23745.0,0.0946389]
[1659229279499,0.40725733,23746.0,23745.0,0.3051279]
[1659229279763,0.46788233,23746.0,23745.0,0.0946389]
[1659229280423,0.40725733,23746.0,23745.0,0.0946389]
[1659229280654,0.5822,23751.0,23745.0,0.3051239]
[1659229280908,0.42538805,23752.0,23747.0,0.210459]
[1659229280909,0.40725733,23750.0,23747.0,0.210459]
[1659229281157,0.060625,23749.0,23747.0,0.210459]
[1659229281387,0.40725733,23748.0,23747.0,0.399881]
[1659229281620,0.40725733,23748.0,23747.0,0.189422]
[1659229282069,0.40725733,23748.0,23747.0,0.20409517]
[1659229282504,0.46788233,23748.0,23747.0,0.20409517]
[1659229282938,0.40725733,23748.0,23747.0,0.20409517]
[1659229283178,0.40725733,23748.0,23747.0,0.189422]
[1659229283854,0.46788233,23748.0,23747.0,0.189422]
[1659229284088,0.40725733,23748.0,23747.0,0.189422]
[1659229285986,0.46788233,23748.0,23747.0,0.189422]
[1659229288224,0.51788233,23748.0,23747.0,0.189422]
[1659229288450,0.51788233,23748.0,23747.0,0.094711]
[1659229288678,0.56788233,23748.0,23745.0,0.094745]
[1659229288936,0.1,23746.0,23745.0,0.094745]
[1659229289145,0.56788233,23746.0,23745.0,0.094745]
[1659229291550,0.50725733,23746.0,23745.0,0.094745]
[1659229291769,0.56788233,23746.0,23745.0,0.094745]
[1659229292672,0.58788232,23746.0,23745.0,0.094745]
[1659229293377,0.50725733,23746.0,23745.0,0.10941817]
[1659229293619,0.40725733,23746.0,23745.0,0.094745]
[1659229293827,0.46788233,23746.0,23745.0,0.094745]
[1659229294040,0.40725733,23746.0,23745.0,0.094745]
[1659229294520,0.46788233,23746.0,23745.0,0.094745]
[1659229295381,0.40725733,23746.0,23745.0,0.10941817]
[1659229295609,0.46788233,23746.0,23745.0,0.094745]
[1659229295833,0.3,23749.0,23745.0,0.094745]
[1659229296061,0.968,23750.0,23745.0,0.189477]
[1659229296062,0.40725733,23748.0,23745.0,0.189477]
[1659229296310,0.42725732,23748.0,23745.0,0.189477]
[1659229296798,0.060625,23747.0,23745.0,0.189477]
[1659229297030,0.42725732,23748.0,23745.0,0.189477]
[1659229297266,0.060625,23747.0,23745.0,0.189477]
[1659229297480,0.46788233,23747.0,23745.0,0.189477]
[1659229297732,0.50725733,23746.0,23745.0,0.189477]
[1659229297964,0.46788233,23746.0,23745.0,0.189477]
[1659229298396,0.40725733,23746.0,23745.0,0.189477]
[1659229298609,0.46788233,23746.0,23745.0,0.189477]
[1659229298855,0.40725733,23746.0,23745.0,0.189477]
[1659229299326,0.46788233,23746.0,23745.0,0.189477]
[1659229299546,0.40725733,23746.0,23745.0,0.189477]
[1659229299769,0.46788233,23746.0,23745.0,0.189477]
[1659229302927,0.40725733,23746.0,23745.0,0.189477]
[1659229304295,0.40725733,23746.0,23745.0,0.20415017]
[1659229304545,0.46788233,23746.0,23745.0,0.20415017]
[1659229304758,0.46788233,23746.0,23745.0,0.189477]
[1659229304983,0.40725733,23746.0,23745.0,0.189477]
[1659229305242,0.46788233,23746.0,23745.0,0.189477]
[1659229305463,0.46788233,23746.0,23745.0,0.20415017]
[1659229305682,0.46788233,23746.0,23745.0,0.189477]
[1659229306626,0.40725733,23746.0,23745.0,0.20415017]
[1659229306851,0.40725733,23749.0,23745.0,0.20415017]
[1659229307105,0.40725733,23751.0,23746.0,0.31577897]
[1659229307326,0.060625,23750.0,23746.0,0.18950797]
[1659229307544,0.40725733,23749.0,23746.0,0.18950797]
[1659229307772,0.060625,23748.0,23746.0,0.18950797]
[1659229307982,0.40725733,23748.0,23746.0,0.18950797]
[1659229308213,0.110625,23747.0,23746.0,0.18950797]
[1659229308469,0.40725733,23748.0,23746.0,0.18950797]
[1659229308906,0.060625,23747.0,23746.0,0.18950797]
[1659229309138,0.40725733,23748.0,23746.0,0.18950797]
[1659229309363,0.060625,23747.0,23746.0,0.18950797]
[1659229309605,0.40725733,23748.0,23746.0,0.18950797]
[1659229309810,0.060625,23747.0,23746.0,0.18950797]
[1659229310033,0.40725733,23748.0,23746.0,0.18950797]
[1659229310542,0.060625,23747.0,23746.0,0.18957653]
[1659229310764,0.40725733,23748.0,23746.0,0.18957653]
[1659229311229,0.060625,23747.0,23746.0,0.18957653]
[1659229311453,0.40725733,23748.0,23746.0,0.18950797]
[1659229311672,0.08062499,23747.0,23746.0,0.18950797]
[1659229311907,0.01999999,23747.0,23746.0,0.18950797]
[1659229312131,0.060625,23747.0,23746.0,0.18957653]
[1659229312606,0.01999999,23747.0,23746.0,0.18957653]
[1659229312825,0.40725733,23748.0,23746.0,0.18957653]
[1659229313045,0.060625,23747.0,23746.0,0.18950797]
[1659229313267,0.40725733,23748.0,23746.0,0.20418114]
[1659229313492,0.40725733,23748.0,23746.0,0.18950797]
[1659229313724,0.10911203,23746.0,23741.0,0.336864]
[1659229313989,0.1,23742.0,23741.0,0.210513]
[1659229314242,1.31788233,23742.0,23733.0,1.58343]
[1659229314468,0.40725733,23741.0,23733.0,1.58343]
[1659229315165,0.61785633,23741.0,23733.0,1.58343]
[1659229315390,0.40725733,23740.0,23733.0,1.58343]
[1659229315627,0.1,23737.0,23736.0,0.094766]
[1659229315857,0.56788233,23737.0,23736.0,0.094766]
[1659229316071,0.56788233,23737.0,23733.0,0.095775]
[1659229316072,0.61788233,23737.0,23733.0,0.095775]
[1659229316323,0.6,23735.0,23733.0,0.095775]
[1659229316557,1.06788233,23735.0,23733.0,0.095775]
[1659229316786,1.08788232,23735.0,23733.0,0.095775]
[1659229317285,1.08788232,23735.0,23734.0,0.21467317]
[1659229317286,0.56788233,23735.0,23734.0,0.21467317]
[1659229317518,0.05001457,23742.0,23734.0,0.51809917]
[1659229317519,0.3,23741.0,23734.0,0.51809917]
[1659229317727,0.70725733,23741.0,23736.0,0.094759]
[1659229317958,0.46788233,23740.0,23736.0,0.094759]
[1659229318230,0.40725733,23739.0,23736.0,0.189518]
[1659229318462,0.060625,23738.0,23736.0,0.189518]
[1659229318696,0.40725733,23737.0,23736.0,0.189518]
[1659229318908,0.46788233,23737.0,23736.0,0.189518]
[1659229319606,0.48788232,23737.0,23736.0,0.189518]
[1659229320291,0.46788233,23737.0,23736.0,0.189518]
[1659229320510,0.51688233,23737.0,23736.0,0.189518]
[1659229321631,0.45625733,23737.0,23736.0,0.189518]
[1659229321844,0.40725733,23737.0,23736.0,0.189518]
[1659229322350,0.48788232,23737.0,23736.0,0.189518]
[1659229322564,0.54288232,23737.0,23736.0,0.189518]
[1659229323233,0.52288233,23737.0,23736.0,0.189518]
[1659229323490,0.52288233,23737.0,23736.0,0.492944]
[1659229323491,0.46225733,23737.0,23736.0,0.492944]
[1659229323717,0.46225733,23737.0,23736.0,0.189518]
[1659229323985,0.40725733,23737.0,23736.0,0.189518]
[1659229324210,0.40725733,23737.0,23736.0,0.20419117]
[1659229324435,0.40725733,23741.0,23736.0,0.20419117]
[1659229324670,0.058,23737.0,23736.0,0.189518]
[1659229324886,0.07799999,23737.0,23736.0,0.189518]
[1659229325112,0.058,23737.0,23736.0,0.189518]
[1659229325326,0.058,23737.0,23736.0,0.20419117]
[1659229325551,0.058,23737.0,23736.0,0.189518]
[1659229326077,0.40725733,23741.0,23736.0,0.189518]
[1659229326296,0.060625,23740.0,23736.0,0.20419117]
[1659229326512,0.056,23737.0,23736.0,0.20419117]
[1659229327878,0.40725733,23739.0,23736.0,0.20419117]
[1659229328103,0.110625,23738.0,23736.0,0.20419117]
[1659229328337,0.40725733,23738.0,23736.0,0.20419117]
[1659229328557,0.05,23737.0,23736.0,0.20419117]
[1659229328778,0.210583,23742.0,23736.0,0.20419117]
[1659229328779,0.049,23739.0,23736.0,0.20419117]
[1659229328993,0.45625733,23739.0,23736.0,0.20419117]
[1659229330137,0.40725733,23739.0,23736.0,0.20419117]
[1659229330580,0.45725733,23739.0,23736.0,0.20419117]
[1659229330809,0.45725733,23739.0,23736.0,0.189518]
[1659229330810,0.48788232,23738.0,23736.0,0.189518]
[1659229331028,0.40725733,23737.0,23736.0,0.189518]
[1659229331465,0.40725733,23737.0,23736.0,0.20419117]
[1659229331720,0.40725733,23737.0,23736.0,0.189518]
[1659229332165,0.40725733,23738.0,23736.0,0.189518]
[1659229332647,0.056,23737.0,23736.0,0.189518]
[1659229333818,1.227577,23743.0,23736.0,0.189518]
[1659229334040,0.210598,23741.0,23736.0,0.20419117]
[1659229334264,0.40725733,23740.0,23736.0,0.20419117]
[1659229334490,0.060625,23739.0,23736.0,0.20419117]
[1659229334709,0.40725733,23739.0,23736.0,0.20419117]
[1659229334940,0.40718612,23739.0,23736.0,0.20419117]
[1659229335165,0.40725733,23738.0,23736.0,0.20419117]
[1659229335651,0.40725733,23738.0,23736.0,0.189518]
[1659229336559,0.45825733,23738.0,23736.0,0.189518]
[1659229336777,0.40725733,23737.0,23736.0,0.189518]
[1659229336992,0.40725733,23737.0,23736.0,0.20419117]
[1659229337900,0.40725733,23738.0,23736.0,0.20419117]
[1659229338573,0.46225733,23738.0,23736.0,0.20419117]
[1659229339503,0.05,23737.0,23736.0,0.20419117]
[1659229339723,0.48225732,23738.0,23736.0,0.189518]
[1659229339948,0.05,23737.0,23736.0,0.20419117]
[1659229340164,0.42725732,23738.0,23736.0,0.189518]
[1659229340603,0.01,23737.0,23736.0,0.262518]
[1659229340850,0.41725733,23737.0,23736.0,0.262518]
[1659229341592,0.47788233,23737.0,23736.0,0.27719117]
[1659229341807,0.47788233,23737.0,23736.0,0.189518]
[1659229341808,0.42725732,23737.0,23736.0,0.189518]
[1659229342264,0.48788232,23737.0,23736.0,0.189518]
[1659229342484,0.48225732,23737.0,23736.0,0.189518]
[1659229342739,0.46225733,23737.0,23736.0,0.189518]
[1659229343489,0.52288233,23737.0,23736.0,0.189518]
[1659229343967,0.46788233,23737.0,23736.0,0.189518]
[1659229344412,0.40725733,23737.0,23736.0,0.189518]
[1659229344635,0.46425733,23737.0,23736.0,0.189518]
[1659229346048,0.40725733,23737.0,23736.0,0.189518]
[1659229346497,0.40725733,23737.0,23736.0,0.266518]
[1659229348281,0.40725733,23737.0,23736.0,0.189518]
[1659229348514,0.41925733,23737.0,23736.0,0.263518]
[1659229349776,0.40725733,23737.0,23736.0,0.189518]
[1659229350669,0.47888233,23737.0,23736.0,0.263518]
[1659229350892,0.43825732,23737.0,23736.0,0.263518]
[1659229351185,0.49888232,23737.0,23736.0,0.263518]
[1659229351375,0.41825733,23737.0,23736.0,0.263518]
[1659229351580,0.41825733,23737.0,23736.0,0.074]
[1659229351805,0.43825732,23737.0,23736.0,0.074]
[1659229352037,0.42725732,23737.0,23736.0,0.094759]
[1659229352589,0.46025733,23737.0,23736.0,0.094759]
[1659229352827,0.48025732,23737.0,23736.0,0.189518]
[1659229353056,0.46025733,23737.0,23736.0,0.189518]
[1659229353857,0.42725732,23737.0,23736.0,0.189518]
[1659229354059,0.40725733,23737.0,23736.0,0.189518]
[1659229354665,0.52288233,23737.0,23736.0,0.189518]
[1659229354891,0.46225733,23737.0,23736.0,0.189518]
[1659229355091,0.48225732,23737.0,23736.0,0.189518]
[1659229355581,0.54288232,23737.0,23736.0,0.189518]
[1659229355795,0.48788232,23737.0,23736.0,0.189518]
[1659229356753,0.48225732,23737.0,23736.0,0.189518]
[1659229357207,0.54288232,23737.0,23736.0,0.189518]
[1659229357920,0.48788232,23737.0,23736.0,0.189518]